[Event "Svetozar Gligoric Masters 2022"]
[Site "Belgrade"]
[Date "2022.07.18"]
[Round "2.10"]
[White "Ristic, Luka"]
[Black "Stoyanov, Tsvetan"]
[Result "0-1"]
[ECO "B91"]
[WhiteElo "2243"]
[BlackElo "2450"]
[Annotator "TA"]
[PlyCount "64"]
[EventDate "2022.07.18"]
[EventCountry "SRB"]
[SourceTitle "playchess.com"]
[Source "ChessBase"]
[SourceQuality "1"]
[TimeControl "40/5400+30:900+30"]

{[%evp 15,64,11,8,8,4,8,10,8,10,16,16,0,0,0,0,0,0,-66,-66,-50,-56,-56,-55,-143,-143,-143,-124,-207,-184,-191,-193,-240,-227,-274,-274,-592,-566,-592,-584,-584,-576,-900,-865,-1203,-1202,-1352,-1333,-2398,-2342,-2771,-2746]} 1. e4 c5 2. Nf3 d6 3. d4 cxd4 4. Nxd4 Nf6 5. Nc3 a6 6. g3 e5 7. Nde2 Be7 8. Bg2 b5 9. Nd5 {B91: Sicilian Najdorf: 6 g3.} Nbd7 10. Nec3 Nb6 11. Nxe7 {The position is equal.} Qxe7 12. Bg5 Bb7 {[#]} 13. Qd3 $146 {[%cal Oc3b5]} ({Predecessor:} 13. O-O h6 14. Bxf6 Qxf6 15. a4 bxa4 16. Nxa4 Nxa4 17. Rxa4 O-O 18. Qd2 Rfc8 19. Rfa1 {½-½ (26) Gavrilescu,D (2436)-Aczel,G (2567) Timisoara 2018}) 13... O-O 14. O-O h6 15. Bxf6 Qxf6 16. Nd5 (16. a3 $11) 16... Bxd5 $15 17. exd5 e4 18. Qxe4 Qxb2 19. Rae1 (19. Rfe1 $15) 19... Nc4 $17 {aiming for ...Nd2.} 20. Qd3 {[%cal Oa2a4] Inhibits Nd2.} Qxa2 21. Re7 (21. Ra1 $17 {was necessary.} Qb2 22. Rfb1) 21... Qb2 22. Rfe1 Qf6 23. R7e4 (23. Qf3 {is a better defense.}) 23... a5 $19 {[%cal Ba6a5,Ba5a4,Ba4a3,Ba3a2][%mdl 32]} 24. Rf4 Qb2 {[#] And now ...a4 would win.} 25. Qf5 $2 (25. Qd4 {is tougher.}) 25... a4 {Hoping for ...a3. Black is clearly winning.} 26. Be4 {[%csl Ge4][%cal Rf5h7]} g6 {Active counter play!} 27. Qh3 Qg7 28. Rh4 a3 29. Rxh6 Rae8 30. Rh4 a2 31. c3 Qxc3 32. Qf1 Nd2 {Weighted Error Value: White=0.97/Black=0.01 (flawless)} 0-1

[Event "Svetozar Gligoric Masters 2022"]
[Site "Belgrade"]
[Date "2022.07.18"]
[Round "2.11"]
[White "Atalik, Suat"]
[Black "Chitlange Sakshi"]
[Result "0-1"]
[ECO "D35"]
[WhiteElo "2446"]
[BlackElo "2216"]
[Annotator "TA"]
[PlyCount "80"]
[EventDate "2022.07.18"]
[EventCountry "SRB"]
[SourceTitle "playchess.com"]
[Source "ChessBase"]
[SourceQuality "1"]
[TimeControl "40/5400+30:900+30"]

{[%evp 13,80,22,25,24,22,25,19,29,27,31,25,32,31,29,31,15,12,12,12,0,25,0,8,0,0,-60,-67,-60,-38,-52,-47,-54,-77,-68,-70,-72,-69,-149,-152,-134,-109,-118,-94,-95,-107,-135,-139,-115,-121,-126,-37,-66,-73,-297,-34,-73,-50,-58,-56,-79,-56,-485,-460,-505,-488,-831,-804,-1356,-1295]} 1. d4 d5 2. c4 e6 3. Nc3 Nf6 4. cxd5 exd5 5. Bg5 c6 6. e3 Bd6 7. Bd3 O-O 8. Nge2 {D35: Queen's Gambit Declined: Exchange Variation.} Re8 9. Qc2 {[%cal Od3h7]} h6 10. Bf4 {The position is equal.} a5 11. O-O Na6 12. a3 {Against Nb4} Nc7 13. h3 Ne6 14. Bxd6 Qxd6 {[#]} 15. Rae1 $146 ({Predecessor:} 15. f3 c5 16. Rae1 Bd7 17. dxc5 Qxc5 18. Qd2 d4 19. exd4 Nxd4 20. Bh7+ Kxh7 21. Qxd4 Qxd4+ 22. Nxd4 {1-0 (62) Bluebaum,M (2647)-Pacan Milej,K (2348) Chess.com INT 2020}) 15... Bd7 16. Ng3 Rac8 17. Qb1 (17. Nf5 $5 {[%cal Rf5d6]} Qf8 18. Na4 $11) 17... Ng5 18. f4 Ne6 19. b4 {Inhibits c5.} ({White should play} 19. Nf5 $11 Qf8 20. Qd1) 19... axb4 $15 20. axb4 b6 {[%cal Bb7b6,Bb6c5][%mdl 32]} 21. Nf5 Qf8 22. Qb3 Nc7 23. g4 c5 24. bxc5 bxc5 25. Qa3 (25. Qd1 $15) 25... Ra8 $17 26. Qc1 Bxf5 27. Bxf5 cxd4 28. exd4 Qb4 29. Rxe8+ Rxe8 30. Rd1 g6 31. Bb1 Qe7 {Black is more active.} (31... Nb5 $17 32. Nxb5 Qxb5) 32. f5 g5 33. Kg2 $2 {[#]} (33. Bd3 $17) 33... Kg7 $2 (33... Nb5 $1 $19 {[%cal Rb5c3][%mdl 512] aiming for ...Nxc3.} 34. Bd3 Nxd4) 34. Qd2 Na6 35. Rf1 Nb4 36. Rf2 Qe3 37. Nb5 $2 {[%mdl 8192] [#]} ({Better is} 37. Qxe3 $1 $15 Rxe3 38. Rf3) 37... Qb3 $1 $19 {Black is clearly winning.} 38. Nc3 Rc8 39. Na2 (39. Rf3 $142 Rxc3 40. Qxc3 Qxb1 41. Re3) 39... Qxb1 ({Weaker is} 39... Ne4 40. Bxe4 Nxa2 41. Bc2 $16 (41. Qxa2 Qxa2 42. Rxa2 dxe4 $11)) 40. Nxb4 Rc1 {Weighted Error Value: White=0.74/Black=0.24 (precise)} 0-1

[Event "Svetozar Gligoric Masters 2022"]
[Site "Belgrade"]
[Date "2022.07.18"]
[Round "2.12"]
[White "Kanov, Nikola"]
[Black "Neelash Saha"]
[Result "0-1"]
[ECO "B15"]
[WhiteElo "2238"]
[BlackElo "2446"]
[Annotator "TA"]
[PlyCount "70"]
[EventDate "2022.07.18"]
[EventCountry "SRB"]
[SourceTitle "playchess.com"]
[Source "ChessBase"]
[SourceQuality "1"]
[TimeControl "40/5400+30:900+30"]

{[%evp 15,70,18,24,14,19,-35,0,-36,-20,-56,-43,-119,-119,-129,-104,-91,-98,-142,-124,-131,-127,-135,-140,-145,-129,-139,-97,-111,-97,-102,-50,-50,-47,-62,-22,-29,-43,-245,-250,-254,-247,-242,-239,-250,-264,-252,-245,-334,-323,-366,-364,-568,-566,-540,-526,-526,-526]} 1. e4 c6 2. d4 d5 3. Nc3 dxe4 4. Nxe4 Nf6 5. Nxf6+ exf6 6. c3 Bd6 7. Bd3 O-O 8. Ne2 Re8 9. O-O {B15: Caro-Kann: 3 Nc3: 3...g6 and 3...dxe4 4 Nxe4 Nf6 5 Nxf6+ exf6.} Nd7 10. f4 (10. Bf4 $11 Nb6 11. Bxd6 Qxd6 12. Ng3) 10... Qc7 11. Ng3 {The position is equal.} c5 $1 {[%cal Bc6c5,Bc5c4][%mdl 32] [#]} 12. Kh1 $146 ({Predecessor:} 12. Nf5 cxd4 13. cxd4 Nf8 14. Nxd6 Qxd6 15. Kh1 Bd7 16. Bd2 Bc6 17. Bc3 Qd5 18. Qg4 Re3 19. Bc2 h5 {0-1 (19) Macias Pino,D (2161)-Howell,D (2676) Valencia 2019}) 12... g6 13. d5 (13. Ne4 $15) 13... c4 $17 14. Be2 Nb6 15. Qd4 {[#]} f5 {Against Ne4} 16. b3 Bc5 17. Qd1 Bf8 {Black is more active.} 18. bxc4 Bd7 ({And not} 18... Nxc4 19. Qa4 Nd6 20. Qb3 $15) 19. Qd3 Rac8 {[%cal Rb6c4]} 20. Be3 Qxc4 21. Qxc4 Nxc4 22. Bxa7 Rxe2 23. Nxe2 $15 {[#] a4 is the strong threat.} b6 24. Rfb1 $1 Bc5 25. Nd4 Ra8 26. Bxb6 {Now White is beyond hope.} Nxb6 $19 ({Worse is} 26... Bxb6 27. Rb4 Bxd4 28. Rxc4 $11) 27. Nb3 Ba3 28. Rd1 Rc8 {[%mdl 1024] Black has strong compensation.} 29. Rd3 Bb5 30. Rd2 Nc4 ({Not} 30... Rxc3 $2 31. d6 $19) 31. Rf2 Nd6 32. Rd1 Rxc3 {White must now prevent ...Ne4.} 33. Nd4 (33. Ra1 $142) 33... Ba4 {This bishop pair is nice. Black is clearly winning.} 34. Nb3 Ne4 35. Re2 Bb5 {Weighted Error Value: White=0.36/Black=0.06 (flawless)} 0-1

[Event "Svetozar Gligoric Masters 2022"]
[Site "Belgrade"]
[Date "2022.07.18"]
[Round "2.13"]
[White "Petrovic, Aleksa"]
[Black "Samant Aditya S"]
[Result "0-1"]
[WhiteElo "2230"]
[BlackElo "2431"]
[Annotator "TA"]
[PlyCount "40"]
[EventDate "2022.07.18"]
[EventCountry "SRB"]
[SourceTitle "playchess.com"]
[Source "ChessBase"]
[SourceQuality "1"]
[TimeControl "40/5400+30:900+30"]

{[%evp 9,10,12,54]} 1. d4 Nf6 2. c4 e6 3. Nf3 Bb4+ 4. Bd2 a5 5. Nc3 d6 {[%mdl 32768] [#] Loss on time!?} {Predecessor:} 6. Qc2 $146 {E11: Bogo-Indian.} Nbd7 7. g3 e5 8. Bg2 exd4 9. Nxd4 O-O 10. O-O Re8 11. Rad1 Ne5 12. b3 c6 13. Bg5 Bxc3 14. Qxc3 h6 15. Bc1 Qe7 16. e4 a4 17. f4 Ng6 18. Rfe1 axb3 19. axb3 Qc7 20. Bb2 Bg4 {1-0 (49) Fedoseev,V (2719)-Hjartarson,J (2530) Chess.com INT 2018} 0-1

[Event "Svetozar Gligoric Masters 2022"]
[Site "Belgrade"]
[Date "2022.07.18"]
[Round "2.14"]
[White "Radovanovic, Nikola"]
[Black "Sanket Chakravarty"]
[Result "1-0"]
[ECO "B23"]
[WhiteElo "2422"]
[BlackElo "2209"]
[Annotator "TA"]
[PlyCount "87"]
[EventDate "2022.07.18"]
[EventCountry "SRB"]
[SourceTitle "playchess.com"]
[Source "ChessBase"]
[SourceQuality "1"]
[TimeControl "40/5400+30:900+30"]

{[%evp 9,87,4,10,-6,-2,-3,-7,0,5,-6,3,-24,-21,-28,33,35,32,18,37,0,75,77,67,62,188,126,161,168,224,43,216,186,206,168,223,223,228,214,202,217,299,302,298,293,594,585,522,539,524,537,535,523,528,537,513,395,483,388,363,370,455,407,407,407,407,407,448,444,433,426,497,479,659,627,763,760,643,535,625,546]} 1. e4 c5 2. Nc3 Nc6 3. Bb5 Nd4 4. Nf3 a6 5. Bd3 g6 6. Rb1 {B23: Closed Sicilian: Lines without g3.} Nc6 7. O-O Bg7 8. a3 {The position is equal.} Nf6 9. b4 d6 10. bxc5 dxc5 11. Re1 {[#]} Bg4 $146 (11... O-O $11) ({Predecessor:} 11... b5 12. Bb2 Bg4 13. Nd5 O-O 14. h3 Bxf3 15. Qxf3 c4 16. Bf1 Nxd5 17. Bxg7 Kxg7 18. exd5 {1-0 (50) Haldorsen,B (2455)-Edouard,R (2653) Sitges 2019}) 12. Rxb7 Nd7 13. Nd5 {Black must now prevent Nc7+.} O-O 14. Be2 Rb8 (14... e6 $11 {keeps the balance.} 15. Rxd7 Qxd7) 15. Rxb8 $1 $16 {White is more active.} Qxb8 16. Bxa6 Nd4 (16... Nde5 $14) 17. c3 ({Better is} 17. Nxe7+ $18 Kh8 18. Be2 Nxe2+ 19. Qxe2) 17... Nxf3+ 18. gxf3 Bh5 (18... Be6 {was necessary.} 19. Nxe7+ Kh8) 19. Nxe7+ $18 Kh8 {[#]} 20. Be2 $1 {[%cal Ba6e2,Be2h5,Bh5f3,Bf3g4][%mdl 32]} f5 21. exf5 Qd6 {[#]} (21... Re8 $142) 22. f4 $1 Qxe7 23. Bxh5 Qh4 24. fxg6 Rxf4 25. Re8+ (25. Qe2 Qg5+ 26. Kh1 Qd5+ 27. Kg1 Qg5+ 28. Kf1 Qd5 $16) 25... Nf8 26. Bf3 hxg6 $2 (26... Qh3 {is more resistant.}) 27. d4 Rf5 28. Be3 cxd4 29. cxd4 Kh7 30. Re4 Qf6 31. Bg4 Ra5 32. Qf3 Rxa3 33. Qxf6 Bxf6 34. d5 {[%cal Bd4d5,Bd5d6][%mdl 32]} Rd3 35. Re8 Kg7 36. Bc5 Nh7 37. d6 Rd5 38. Rc8 {White is clearly winning.} Ng5 39. Rc7+ Kh6 40. Be3 {And now d7 would win.} Bd4 41. Bf4 {aiming for h4.} Be5 42. Bxe5 Rxe5 43. d7 Rd5 44. Rc8 {Weighted Error Value: White=0.13 (very precise) /Black=0.39} 1-0

[Event "Svetozar Gligoric Masters 2022"]
[Site "Belgrade"]
[Date "2022.07.18"]
[Round "2.15"]
[White "Muthaiah AL"]
[Black "Veselov, Yaroslav"]
[Result "0-1"]
[WhiteElo "2401"]
[BlackElo "2206"]
[Annotator "TA"]
[PlyCount "35"]
[EventDate "2022.07.18"]
[EventCountry "SRB"]
[SourceTitle "playchess.com"]
[Source "ChessBase"]
[SourceQuality "1"]
[TimeControl "40/5400+30:900+30"]

{[%evp 9,20,17,17,15,27,28,5,0,0,0,7,-4,0]} 1. c4 e5 {[%cal Be7e5,Be5e4][%mdl 32]} 2. g3 c6 3. Nf3 e4 4. Nd4 {[%cal Bf3d4,Bd4c2,Bc2e3][%mdl 32]} d5 5. cxd5 Qxd5 6. Nc2 {A20: English Opening: 1...e5.} Nf6 7. Nc3 Qe5 8. Bg2 {The position is equal.} Na6 9. O-O Be7 10. Ne3 O-O {[%mdl 32768] [#] A rather calm draw.  Weighted Error Value: White=0.02 (flawless) /Black=0.00 (flawless) . Sensor Board Error (Ke4/e5)?} {Predecessor:} 11. a3 $146 Re8 12. b4 Ng4 13. Bb2 Qh5 14. h4 Bf6 15. Qc2 Nxe3 16. dxe3 Bf5 17. Na4 Bxb2 18. Nxb2 {0-1 (32) Ding,L (2806)-Nepomniachtchi,I (2766) Madrid 2022} 0-1

[Event "Svetozar Gligoric Masters 2022"]
[Site "Belgrade"]
[Date "2022.07.18"]
[Round "2.16"]
[White "Biocanin, Goran"]
[Black "Damjanovic, Vuk"]
[Result "0-1"]
[ECO "B00"]
[WhiteElo "2224"]
[BlackElo "2393"]
[Annotator "TA"]
[PlyCount "100"]
[EventDate "2022.07.18"]
[EventCountry "SRB"]
[SourceTitle "playchess.com"]
[Source "ChessBase"]
[SourceQuality "1"]
[TimeControl "40/5400+30:900+30"]

{[%evp 9,100,2,0,0,10,4,10,7,23,23,26,9,20,13,13,3,7,5,4,0,0,0,0,0,0,-13,0,0,0,-18,0,-19,0,0,-7,-60,-63,-68,-75,-60,-67,-81,-30,-22,0,-29,0,0,29,12,8,18,31,0,0,0,0,0,15,0,0,0,19,0,0,0,131,134,1582,1603,1562,1428,1100,811,787,706,701,664,1943,1876,2848,2640,4096,1218,1036,545,714,714,1339,269,257,255,873]} 1. e4 Nc6 2. Nf3 d6 3. Bc4 Nf6 4. d3 g6 5. Nc3 Bg7 6. h3 {B00: Queen's Fianchetto Defence, Nimzowitsch Defence.} O-O 7. a3 e5 8. Bg5 {The position is equal.} Be6 9. Nd5 Bxd5 {[#]} 10. Bxd5 $146 ({Predecessor:} 10. Bxf6 Qxf6 11. Bxd5 Rab8 12. O-O Ne7 13. Ba2 c6 14. Qd2 Rfd8 15. Rae1 g5 16. Nxg5 {1-0 (45) Venturas,B (691)-Billion,P (931) LSS email 2010}) 10... h6 11. Bxf6 Qxf6 12. c3 Nd8 13. h4 Ne6 14. Bxe6 Qxe6 15. h5 g5 {[%cal Bg6g5,Bg5g4][%mdl 32]} 16. Nd2 f5 17. f3 g4 18. Qe2 fxe4 19. dxe4 Bf6 20. O-O-O Bg5 21. Kc2 $1 gxf3 22. gxf3 (22. Nxf3 $11 Be7 23. Rdf1) 22... Rf6 $15 23. Rdg1 a6 {Black is more active.} 24. Rg3 Raf8 25. Nc4 {[%cal Bd2c4,Bc4e3,Be3f5][%mdl 32]} Qf7 (25... Kh7 $17) 26. Rhh3 $1 $11 {[%cal Bh1h3,Bh3g3,Bg3g5][%mdl 32]} Qe6 27. Ne3 c6 28. Nf5 {[%cal Of5h6]} Kf7 29. Rg4 Qd7 30. Rhg3 Ke8 31. Qd3 Kd8 32. Rxg5 hxg5 33. Rxg5 Kc7 34. h6 {[%mdl 1024] White has compensation.} R8f7 35. Qc4 b5 36. Qd3 Rh7 37. Qe3 {White wants to mate with Qa7+.} Kb7 {[#] Against Qa7+} (37... c5 $1 $11 {keeps the balance.}) 38. Qg1 $1 $16 ({Of course not} 38. Rg7 $6 Rxg7 39. hxg7 Rg6 $11) 38... Rxf5 $4 {[%mdl 8192] A mistake that costs the game.} (38... Qf7 $16) 39. exf5 {[%mdl 4096] Endgame And now Rg7 would win. KQR-KQR} Rf7 40. Qg4 Kb6 41. b4 {[%cal Of5f6] Threatens to win with f6!} a5 42. Rh5 axb4 43. axb4 c5 44. bxc5+ Kxc5 45. f6 {[#] Intending Qxd7 and mate.} Qc7 46. Qg6 (46. h7 $142 Rf8 47. h8=Q) 46... Rh7 $18 47. Qe4 {Black must now prevent f4.} Qf7 48. Rh1 Rh8 49. Qe3+ $2 (49. Ra1 {aiming for Qb4+.} Qc4 50. f7) 49... Kc6 50. Ra1 {Against Qa2+. Strongly threatening Ra6+.} Qxf6 $2 {[%mdl 32768] Weighted Error Value: White=0.30/Black=0.17 (very precise) . Loss on time!?} (50... Qg6+ 51. Kb3 Qg8+ 52. f7 Qxf7+ 53. Kb2 Qf4 54. Qxf4 exf4) 0-1

[Event "Svetozar Gligoric Masters 2022"]
[Site "Belgrade"]
[Date "2022.07.18"]
[Round "2.17"]
[White "Skare, Goran"]
[Black "Erdogmus, Yagiz Kaan"]
[Result "0-1"]
[ECO "A37"]
[WhiteElo "2218"]
[BlackElo "2373"]
[Annotator "TA"]
[PlyCount "90"]
[EventDate "2022.07.18"]
[EventCountry "SRB"]
[SourceTitle "playchess.com"]
[Source "ChessBase"]
[SourceQuality "1"]
[TimeControl "40/5400+30:900+30"]

{[%evp 21,90,-16,0,0,0,0,0,0,-8,0,17,0,27,-42,-30,-35,-21,-24,-23,-35,-35,-62,-41,-82,-30,-89,-76,-101,-90,-129,-118,-121,-95,-100,-94,-95,-91,-88,-81,-333,-306,-364,-123,-126,-122,-114,-116,-377,-366,-450,-334,-496,-373,-570,-571,-552,-530,-613,-606,-598,-598,-588,-536,-622,-621,-606,-593,-580,-580,-569,-490]} 1. Nf3 c5 2. g3 Nc6 3. Bg2 g6 4. c4 Bg7 5. O-O e6 6. Nc3 Nge7 7. d3 O-O 8. Bd2 d5 9. a3 b6 10. Rb1 Bb7 11. cxd5 exd5 12. b4 {A37: Symmetrical English vs ...g6: 4 Bg2 Bg7 5 Nf3.} d4 13. Ne4 cxb4 14. axb4 {The position is equal.} Nd5 15. Qb3 Nce7 16. b5 h6 {[#]} 17. g4 $146 (17. Rbc1 $11) ({Predecessor:} 17. Qa3 Qd7 18. Nd6 a5 19. Nxb7 Qxb7 20. e4 Nc3 21. Rb3 Ne2+ 22. Kh1 Qd7 23. Re1 {0-1 (57) Ruether,R (2036)-Schulz,M (2079) Bayern 2012}) 17... Qd7 18. h3 Kh8 19. Qa3 $1 Rfd8 (19... f5 {keeps more tension.} 20. Nd6 fxg4 21. hxg4 Nc3) 20. Rfc1 f5 21. gxf5 Nxf5 22. Rc4 Nc7 (22... g5 $17) 23. Qb2 (23. Bf4 $1 $11 Nxb5 24. Qb4) 23... Bd5 24. Rb4 Ne6 25. Ng3 Nxg3 26. fxg3 Kh7 27. Be1 Rac8 28. Bf2 Rc5 29. h4 Rdc8 {[#] White must now prevent ...Rc2.} 30. Ne1 {[%mdl 8192] Against Rc2} ({Avoid the trap} 30. Bh3 $2 Rc2 31. Qa3 Rxe2 $19) (30. Re1 $17) 30... Bxg2 31. Kxg2 Nc7 $2 (31... g5 $19 {is more deadly.} 32. Rc4 Qd5+ 33. Kg1 gxh4) 32. Bxd4 $17 Nd5 {Black is more active.} 33. Bxg7 {[%cal Og7d4] [#] Threatens to win with Bd4!} Nxb4 {The board is on fire.} ({But not} 33... Qxg7 34. Qxg7+ Kxg7 35. R4b3 $16) 34. Bd4 $2 {[%mdl 8192]} (34. Qxb4 $17 Qxg7 35. Nf3) 34... Rxb5 $19 35. e3 a5 ({Weaker is} 35... Nxd3 36. Qxb5 Nxe1+ 37. Kf2 Qxb5 38. Rxb5 Nd3+ 39. Ke2 $15) 36. Qb3 (36. Kh2 $142) 36... Rd5 37. Bxb6 (37. Rb2 {was worth a try.}) 37... Rb8 {Black is clearly winning.} 38. Bd4 Nc6 39. Qxb8 Nxb8 40. Rxb8 {[%csl Gd4][%cal Rb8h8]} Rxd4 41. exd4 Qxd4 {KQ-KRN} 42. Kf1 Qd5 {Inhibits Ra8.} 43. Rb6 Qa8 {Prevents Ra6.} 44. Ke2 a4 {Against Rb3} 45. Rb2 Qd5 {Weighted Error Value: White=0.52/Black=0.23 (precise)} 0-1

[Event "Svetozar Gligoric Masters 2022"]
[Site "Belgrade"]
[Date "2022.07.18"]
[Round "2.18"]
[White "Kushagra Mohan"]
[Black "Stamatiou, Rodolfos"]
[Result "1-0"]
[ECO "B92"]
[WhiteElo "2359"]
[BlackElo "2189"]
[Annotator "TA"]
[PlyCount "107"]
[EventDate "2022.07.18"]
[EventCountry "SRB"]
[SourceTitle "playchess.com"]
[Source "ChessBase"]
[SourceQuality "1"]
[TimeControl "40/5400+30:900+30"]

{[%evp 13,107,0,9,9,9,10,22,18,22,21,14,16,6,6,14,4,8,0,24,0,0,-8,0,-25,0,-26,-28,-46,22,19,43,39,60,56,76,76,118,102,98,58,41,0,14,17,10,9,9,17,78,87,106,75,203,205,191,180,241,49,96,0,237,227,389,249,256,256,247,245,312,229,312,310,433,432,489,487,487,480,537,559,3779,5272,2414,2079,1297,744,977,1185,1556,1485,5081,5751,29983,29983,29980,29981]} 1. e4 c5 2. Nf3 d6 3. d4 cxd4 4. Nxd4 Nf6 5. Nc3 a6 6. Be2 e5 7. Nf3 Qc7 8. Bg5 {aiming for Bxf6. B92: Sicilian Najdorf: 6 Be2.} Nbd7 9. a4 h6 10. Be3 {The position is equal.} Nc5 11. Nd2 Be6 12. O-O Be7 {[#]} 13. Re1 $146 ({Predecessor:} 13. Bf3 O-O 14. a5 Qc6 15. Qe2 Rac8 16. Rfd1 Rfe8 17. g3 Bf8 18. Bg2 Bg4 19. Bf3 {0-1 (42) Salemgareev,T (2463)-Sarana,A (2635) Cheliabinsk 2021}) 13... O-O 14. Bf3 Rfd8 15. Nf1 Rac8 (15... b5 $5) 16. Bxc5 Qxc5 17. Ne3 Qb4 18. Rb1 Bf8 19. h3 g6 20. Bg4 Nxg4 (20... Nxe4 $2 21. Bxe6 fxe6 22. Qg4 $18) ({Black should play} 20... h5 $15 21. Bxe6 fxe6) 21. hxg4 $11 Rc5 22. Qf3 Rb8 23. g3 (23. Ned5 {is interesting.} Bxd5 24. Nxd5 Qxa4 25. c3) 23... Rxc3 24. bxc3 Qxa4 25. Kg2 Qc6 26. Rh1 Qxc3 27. Rh2 Bg7 28. Rbh1 Qc8 {[#]} 29. Nf5 $1 gxf5 30. gxf5 Bxf5 31. exf5 $16 {Black must now prevent Qg4.} Qc6 32. f6 $36 {[%mdl 2048] White is really pushing.} Bxf6 (32... Bf8 $16) 33. Rxh6 $18 {Dancing on a razor blade.} Qxf3+ 34. Kxf3 $16 {[%mdl 4096] Endgame KRR-KRB} Kg7 (34... Bg7 $142) 35. Rh7+ $2 (35. Ke4 $1 $18 {[%cal Re4f5] Kf5 is the strong threat.} Bd8 36. Rxd6) 35... Kg8 $1 $14 {[#]} 36. R7h6 (36. Ke4 $1 $16) 36... Kg7 $18 {[#] White stays focused until the end.} 37. Ke4 $1 {Strongly threatening Kf5.} Bg5 $2 (37... Rg8 {is a better defense.} 38. Rh7+ Kf8) 38. Rxd6 Rc8 39. Kf5 ({Don't do} 39. Kxe5 $6 Be7 $18) 39... Bd8 40. Rb1 ({And not} 40. Kxe5 Bc7 41. c4 Bxd6+ 42. Kxd6 Rxc4 $17) 40... b5 41. Rb2 ({Resist} 41. Rxa6 $6 Rxc2 42. Rxb5 Rxf2+ 43. Kxe5 Rg2 $18) 41... Be7 42. Rxa6 Rc5 43. Rb6 Rc3 44. R6xb5 Rf3+ 45. Ke4 Rxf2 46. c4 f5+ 47. Kd5 Rf3 48. R2b3 Rf2 49. Kxe5 Bf6+ 50. Ke6 Kg6 51. Rd5 f4 52. gxf4 {White threatens Rg3+ and mate.} Rxf4 53. Rg3+ Kh6 54. Rf5 {Weighted Error Value: White=0.24 (precise) /Black=0.48} 1-0

[Event "Svetozar Gligoric Masters 2022"]
[Site "Belgrade"]
[Date "2022.07.18"]
[Round "2.19"]
[White "Srija, Seshadri"]
[Black "Tisaj, Domen"]
[Result "1-0"]
[ECO "C07"]
[WhiteElo "2208"]
[BlackElo "2355"]
[Annotator "TA"]
[PlyCount "107"]
[EventDate "2022.07.18"]
[EventCountry "SRB"]
[SourceTitle "playchess.com"]
[Source "ChessBase"]
[SourceQuality "1"]
[TimeControl "40/5400+30:900+30"]

{[%evp 14,107,17,7,36,26,24,5,25,27,29,24,72,0,15,11,22,-1,0,0,4,-77,-12,-53,-54,-53,-47,-116,-112,-121,-98,-95,-95,-118,-90,-77,-47,-51,-41,-51,-4,-2,-4,-10,0,-3,4,-25,-6,-12,-9,-89,-55,-123,-136,-173,-195,-208,-216,-198,-104,-106,63,50,66,68,544,575,568,571,572,566,531,512,895,895,870,843,841,824,776,756,1006,983,1605,1286,2775,2172,1777,1585,29984,29985,29993,29994,29994,1186]} 1. e4 e6 2. d4 d5 3. Nd2 c5 4. Ngf3 cxd4 5. Nxd4 Nc6 6. Bb5 Bd7 7. Nxc6 bxc6 8. Bd3 Ne7 {C07: French Tarrasch: 3...c5, 4 Ngf3 and 4 exd5 Qxd5.} 9. O-O Ng6 10. f4 Bc5+ {The position is equal.} 11. Kh1 O-O 12. Nf3 {[#]} f5 $146 (12... Qc7 $11 {should be considered.}) ({Predecessor:} 12... f6 13. c4 Be8 14. Qe2 Bf7 15. b3 Qc7 16. g3 a5 17. Be3 Ba3 18. Bc1 Bd6 {½-½ (45) Radev,N-Marszalek,R (2340) Pazardzik 1978}) 13. e5 ({Better is} 13. exf5 $16 exf5 14. g3) 13... Be7 14. c4 Rb8 15. Bc2 Qb6 16. Bb3 Rfd8 17. Qd3 (17. Bd2 $11 {keeps the balance.}) 17... Bc8 (17... c5 $1 $17) 18. Be3 d4 19. Bd2 {[%cal Oc4c5]} ({Don't blunder} 19. Bxd4 $2 c5 20. Rac1 Ba6 $19) 19... c5 20. h3 (20. Ba4 $15) 20... Bb7 $17 21. Kh2 Rf8 22. Qe2 a5 23. Qe1 Ra8 24. Ba4 Be4 25. b3 Ra7 26. Bb5 a4 (26... Rfa8 $15 {is more appropriate.}) 27. bxa4 $11 Rfa8 28. a5 Qb7 29. a4 Bd8 30. Ra2 Bxa5 31. Bxa5 Rxa5 32. Ng5 (32. Qg3 $11) 32... Nf8 33. Nxe4 (33. Qd1 $15) 33... fxe4 $17 {[%cal Bf5e4,Be4e3][%mdl 32]} 34. f5 exf5 35. Rxf5 e3 {Inhibits Raf2.} 36. Qg3 Ne6 (36... Ng6 $1 $19 {Threatens to win with ...Qe4.} 37. e6 Qb6) 37. Rf6 Qe7 (37... Qc8 $17 38. Rf1 (38. Qg4 Nf8 $15) 38... Kh8) 38. Bc6 $1 $14 {[%cal Bb5c6,Bc6a8,Ba8d5,Bd5e6,Be6f5,Bf5g4][%mdl 32]} Kh8 $1 39. Bxa8 {White is more active.} gxf6 $4 {[%mdl 8192] [#] This costs Black the game.} (39... Rxa8 $14 40. Rf1 h6) 40. Bd5 $1 $18 {White wants to mate with Rb2.} Qc7 41. Bxe6 {[%csl Ge6][%cal Rg3g8]} Qxe5 42. Qxe5 fxe5 {[%mdl 4096] Endgame KRB-KR} 43. Kg3 d3 (43... h5 $142 44. Bf5 Kg7) 44. Bf5 d2 45. Bg4 Ra6 46. Ra1 Kg7 47. Be2 Rf6 48. a5 Rf2 {[#]} 49. a6 $1 {Intending a7 and mate.} Rxe2 (49... d1=Q 50. Rxd1) 50. a7 d1=Q {[#]} 51. a8=Q $1 {White threatens Qb7+ and mate.} ({Weaker is} 51. Rxd1 Ra2 $16) 51... Qd3 52. Ra7+ {White mates.} Kg6 53. Qg8+ Kh5 54. Qg4+ {Weighted Error Value: White=0.18 (very precise) /Black=0.47} 1-0